[Event "World Junior U20 Girls 2018"]
[Site "Gebze"]
[Date "2018.09.13"]
[Round "9"]
[White "De Silva, Tenara"]
[Black "Celik, Eda"]
[Result "1/2-1/2"]
[ECO "A25"]
[WhiteElo "1764"]
[BlackElo "1970"]
[Annotator "NA"]
[PlyCount "111"]
[EventDate "2018.09.05"]
[EventType "swiss"]
[EventCountry "TUR"]
[SourceTitle "playchess.com"]
[Source "ChessBase"]
[SourceQuality "1"]
[TimeControl "40/5400+30:1800+30"]

1. c4 {[%emt 0:00:30]} e5 {[%emt 0:00:30]} 2. Nc3 {[%emt 0:00:30]} Nc6 {[%emt 0:00:30]} 3. g3 {[%emt 0:00:00]} Bc5 {[%emt 0:00:00]} 4. Bg2 {[%emt 0:00:00]} d6 {[%emt 0:01:00]} 5. e3 {[%emt 0:01:30]} a6 {[%emt 0:00:00] A25: English Opening vs King's Indian with ...Nc6 but without early d3} 6. Nge2 {[%emt 0:00:00]} (6. Nf3 Nf6 7. O-O O-O 8. h3 Ba7 9. d4 h6 10. dxe5 dxe5 11. Qxd8 Rxd8 12. b3 Be6 13. Ba3 Rd7 14. Rfd1 Rad8 15. Rxd7 Rxd7 {½-½ (41) Howell,D (2676)-Ponomariov,R (2694) Riadh 2017}) 6... Ba7 {[%emt 0:00:00]} 7. a3 {[%emt 0:03:00]} Nf6 {[%emt 0:04:30]} 8. b4 {[%emt 0:01:30]} O-O {[%emt 0:02:30]} 9. O-O {[%emt 0:01:30]} Re8 {[%emt 0:02:30]} 10. Bb2 {[%emt 0:01:30]} e4 {[%emt 0:16:30]} (10... Ne7 $11 {keeps the balance.}) 11. Qc2 {[%emt 0:06:30]} Bf5 {[%emt 0:04:30]} 12. Nf4 $146 {[%emt 0:08:30]} ({Predecessor:} 12. h3 Qd7 13. Kh2 Bg6 14. Nf4 Qf5 15. g4 Qg5 {1-0 (31) Soltes,M (1649)-Ujhelyi,M (1498) Bratislava 2005}) 12... Ne5 {[%emt 0:05:30]} 13. Ncd5 {[%emt 0:16:30]} Nxd5 {[%emt 0:04:30]} 14. cxd5 {[%emt 0:02:30]} g5 {[%emt 0:03:30]} 15. Ne2 {[%emt 0:03:30]} Qd7 {[%emt 0:12:30]} 16. Qc3 {[%emt 0:04:30]} f6 {[%emt 0:08:30]} ({Black should play} 16... Bg4 $15 17. Rfe1 Qb5) 17. f4 {[%emt 0:04:30]} exf3 {[%emt 0:04:30]} 18. Bxf3 {[%emt 0:00:30]} Rf8 {[%emt 0:09:27]} 19. Nd4 {[%emt 0:07:30]} Bxd4 {[%emt 0:02:15]} 20. Qxd4 {[%emt 0:00:30]} Rae8 {[%emt 0:07:23]} 21. e4 $15 {[%emt 0:07:30]} (21. Rac1 $11) 21... Nxf3+ {[%emt 0:04:27]} 22. Rxf3 {[%emt 0:00:30]} Rxe4 {[%emt 0:00:07]} 23. Qf2 {[%emt 0:00:30]} Bh3 {[%emt 0:05:41]} 24. Rxf6 {[%emt 0:02:30]} Rfe8 {[%emt 0:00:08]} 25. d3 {[%emt 0:09:43]} Re2 {[%emt 0:00:12]} 26. Rf8+ {[%emt 0:00:30]} Rxf8 {[%emt 0:00:30]} 27. Qxe2 {[%emt 0:00:00]} Qf7 {[%emt 0:00:58]} 28. Re1 {[%emt 0:03:59]} Qxd5 {[%emt 0:00:21]} 29. g4 {[%emt 0:00:55]} Rf4 {[%emt 0:00:54]} 30. Qe8+ {[%emt 0:00:52]} Rf8 {[%emt 0:00:01]} 31. Qe2 {[%emt 0:00:04]} Rf4 {[%emt 0:01:05]} 32. Qe8+ {[%emt 0:00:30]} Rf8 {[%emt 0:00:30]} 33. Qe2 {[%emt 0:00:00]} Qf7 {[%emt 0:00:24]} 34. Bc1 {[%emt 0:04:38]} Bxg4 {[%emt 0:00:28]} 35. Qg2 {[%emt 0:02:07]} Qf3 {[%emt 0:00:34]} 36. Bxg5 {[%emt 0:03:19]} Qxg2+ {[%emt 0:00:54]} 37. Kxg2 {[%emt 0:00:04]} Rf7 {[%emt 0:00:07]} 38. Re7 {[%emt 0:00:09]} Rxe7 {[%emt 0:00:50]} 39. Bxe7 {[%emt 0:00:04]} Be2 {[%emt 0:00:08]} 40. d4 {[%emt 0:00:00]} Kf7 {[%emt 0:00:00]} 41. Bd8 {[%emt 0:02:36]} c6 {[%emt 0:02:36]} 42. Kf2 {[%emt 0:00:00]} Bd3 {[%emt 0:03:30]} 43. Ke3 {[%emt 0:01:00]} Bb1 {[%emt 0:00:30]} 44. Kd2 {[%emt 0:00:30]} Ke6 {[%emt 0:00:30]} 45. Kc3 {[%emt 0:00:30]} Kd5 {[%emt 0:02:30]} 46. a4 {[%emt 0:00:30]} b5 {[%emt 0:02:30]} 47. axb5 {[%emt 0:00:30]} axb5 {[%emt 0:00:30]} 48. Bg5 {[%emt 0:00:30]} h5 {[%emt 0:00:30]} 49. h4 {[%emt 0:00:30]} c5 {[%emt 0:00:30]} 50. dxc5 {[%emt 0:00:00]} dxc5 {[%emt 0:00:30]} 51. bxc5 {[%emt 0:00:00]} Kxc5 {[%emt 0:00:30]} 52. Kb2 {[%emt 0:00:30]} Be4 {[%emt 0:00:00]} 53. Be7+ {[%emt 0:00:00]} Kc4 {[%emt 0:00:00]} 54. Bf6 {[%emt 0:00:00]} b4 {[%emt 0:00:30]} 55. Be7 {[%emt 0:00:00]} Bf5 {[%emt 0:00:30]} 56. Bf6 {[%emt 0:00:00]} 1/2-1/2

[Event "World Junior U20 Girls 2018"]
[Site "Gebze"]
[Date "2018.09.13"]
[Round "9"]
[White "Huttl, Sofie"]
[Black "Heydarova, Aytaj"]
[Result "0-1"]
[ECO "B77"]
[WhiteElo "1727"]
[BlackElo "1948"]
[Annotator "NA"]
[PlyCount "84"]
[EventDate "2018.09.05"]
[EventType "swiss"]
[EventCountry "TUR"]
[SourceTitle "playchess.com"]
[Source "ChessBase"]
[SourceQuality "1"]
[TimeControl "40/5400+30:1800+30"]

1. e4 {[%emt 0:00:30]} c5 {[%emt 0:00:30]} 2. Nf3 {[%emt 0:00:00]} d6 {[%emt 0:00:30]} 3. d4 {[%emt 0:00:00]} cxd4 {[%emt 0:00:30]} 4. Nxd4 {[%emt 0:00:30]} Nf6 {[%emt 0:00:00]} 5. Nc3 {[%emt 0:00:00]} g6 {[%emt 0:00:00]} 6. Be3 {[%emt 0:00:00]} Bg7 {[%emt 0:00:00]} 7. f3 {[%emt 0:00:00]} Nc6 $14 {[%emt 0:00:00] LiveBook: 3794 Games} 8. Qd2 {[%emt 0:00:00]} O-O {[%emt 0:00:00]} 9. Bc4 {[%emt 0:00:30]} a6 {[%emt 0:00:00]} 10. O-O-O {[%emt 0:00:30]} Nxd4 {[%emt 0:01:30]} 11. Bxd4 {[%emt 0:00:00]} Be6 {[%emt 0:00:30] B77: Sicilian Dragon: Yugoslav Attack, 9 Bc4 sidelines} (11... b5 12. Bb3 Bb7 13. h4 a5 14. Nxb5 a4 15. Bc4 Ba6 16. Na3 Qc8 17. Bxa6 Rxa6 18. g4 Rc6 19. g5 Nh5 20. Bxg7 Nxg7 {1-0 (49) Blaskowski,J (2287)-Schuette,M (2267) Bayern 2009}) 12. Bxe6 {[%emt 0:01:00]} fxe6 {[%emt 0:00:30]} 13. h4 {[%emt 0:00:30]} Qa5 {[%emt 0:06:30]} 14. Kb1 {[%emt 0:00:30]} Rac8 {[%emt 0:01:30]} 15. g4 {[%emt 0:17:30]} Rc4 {[%emt 0:08:30]} 16. Qe3 {[%emt 0:20:30]} Rb4 $146 {[%emt 0:19:30]} ({Predecessor:} 16... Rfc8 17. Rd3 Rxd4 18. Rxd4 Nd7 19. h5 Bxd4 20. Qxd4 Qc5 21. Qd1 g5 {1-0 (71) Ponjican,E-Wutzlhofer,R (2134) Austria 2002}) 17. Ne2 {[%emt 0:06:30]} Qc7 {[%emt 0:07:30]} 18. h5 {[%emt 0:02:30]} Rc8 {[%emt 0:02:30]} 19. Bc3 {[%emt 0:04:30]} Nxg4 {[%emt 0:03:30]} 20. fxg4 {[%emt 0:11:30]} Bxc3 {[%emt 0:00:30]} 21. Nxc3 {[%emt 0:00:30]} Qxc3 {[%emt 0:00:30]} 22. Qxc3 {[%emt 0:00:00]} Rxc3 {[%emt 0:00:30]} 23. hxg6 {[%emt 0:00:00]} hxg6 {[%emt 0:00:00]} 24. Rh6 {[%emt 0:00:30]} Kg7 {[%emt 0:03:00]} 25. Rdh1 {[%emt 0:00:30]} Rg3 {[%emt 0:00:30]} 26. Rh7+ {[%emt 0:01:30]} Kf6 {[%emt 0:03:30]} 27. Rf1+ {[%emt 0:03:30]} Ke5 {[%emt 0:00:30]} 28. Rxe7 {[%emt 0:00:30]} Rxg4 {[%emt 0:00:30]} 29. a3 {[%emt 0:01:30]} Rb5 {[%emt 0:02:30]} 30. Rff7 {[%emt 0:01:30]} Rxe4 {[%emt 0:03:30]} 31. Rg7 {[%emt 0:03:30]} Rg4 {[%emt 0:06:30]} 32. Re8 {[%emt 0:01:30]} Kf6 {[%emt 0:08:30]} 33. Rd7 {[%emt 0:02:30]} d5 {[%emt 0:03:26]} 34. Rf8+ {[%emt 0:01:30]} Ke5 {[%emt 0:00:33]} 35. Re7 {[%emt 0:01:30]} Rg1+ {[%emt 0:01:03]} 36. Ka2 {[%emt 0:00:30]} Rg2 {[%emt 0:00:32]} 37. Kb1 {[%emt 0:00:00]} g5 {[%emt 0:01:34]} 38. Rg7 {[%emt 0:01:00]} d4 {[%emt 0:06:57]} 39. Rg6 {[%emt 0:00:30]} Rd5 {[%emt 0:05:11]} 40. Re8 {[%emt 0:01:15]} Rd6 {[%emt 0:00:00]} 41. Reg8 {[%emt 0:00:45]} Kf5 {[%emt 0:02:14]} 42. R6g7 {[%emt 0:00:30]} e5 {[%emt 0:01:30]} 0-1

[Event "World Junior U20 Girls 2018"]
[Site "Gebze"]
[Date "2018.09.13"]
[Round "9"]
[White "Anandpara Jayendra Saloni"]
[Black "Rousseau, Christilla"]
[Result "0-1"]
[ECO "D00"]
[WhiteElo "1326"]
[BlackElo "1677"]
[Annotator "NA"]
[PlyCount "99"]
[EventDate "2018.09.05"]
[EventType "swiss"]
[EventCountry "TUR"]
[SourceTitle "playchess.com"]
[Source "ChessBase"]
[SourceQuality "1"]
[TimeControl "40/5400+30:1800+30"]

1. d4 {[%emt 0:00:30]} d5 {[%emt 0:00:30]} 2. Bf4 {[%emt 0:00:00]} Nf6 {[%emt 0:00:30]} 3. e3 {[%emt 0:00:00]} e6 {[%emt 0:00:00]} 4. c4 {[%emt 0:00:30]} c5 {[%emt 0:01:00]} 5. Nc3 {[%emt 0:00:30]} a6 {[%emt 0:03:30]} 6. Nf3 {[%emt 0:06:30]} Nc6 {[%emt 0:01:30]} 7. Bg5 {[%emt 0:06:30]} Be7 {[%emt 0:05:30]} 8. dxc5 {[%emt 0:19:30]} Bxc5 {[%emt 0:04:30]} 9. cxd5 {[%emt 0:00:30]} exd5 {[%emt 0:00:30]} 10. Nxd5 {[%emt 0:01:30]} Qxd5 {[%emt 0:01:30]} 11. Bxf6 {[%emt 0:03:30]} Qxd1+ {[%emt 0:00:00]} 12. Rxd1 {[%emt 0:00:30]} gxf6 {[%emt 0:01:00]} 13. a3 {[%emt 0:02:30]} Be6 {[%emt 0:04:30]} 14. Be2 {[%emt 0:00:30]} O-O {[%emt 0:00:30]} 15. O-O {[%emt 0:00:30]} Rad8 {[%emt 0:03:30]} 16. b4 {[%emt 0:01:30]} Be7 {[%emt 0:05:30]} 17. Rc1 {[%emt 0:06:30]} Rd6 {[%emt 0:20:30]} 18. h3 {[%emt 0:06:30]} Rfd8 {[%emt 0:02:30]} 19. b5 {[%emt 0:06:30]} axb5 {[%emt 0:01:30]} 20. Bxb5 {[%emt 0:00:30]} Rc8 {[%emt 0:09:30]} 21. a4 {[%emt 0:01:30]} Rdd8 {[%emt 0:06:30]} 22. Rb1 {[%emt 0:05:30]} Ne5 {[%emt 0:08:46]} 23. Nd4 {[%emt 0:02:30]} Bd7 {[%emt 0:01:29]} 24. f4 {[%emt 0:09:53]} Ng6 {[%emt 0:02:54]} 25. Rfc1 {[%emt 0:03:54]} Bxb5 {[%emt 0:02:18]} 26. Rxc8 {[%emt 0:01:32]} Rxc8 {[%emt 0:00:12]} 27. Rxb5 {[%emt 0:00:32]} Rc1+ {[%emt 0:02:29]} 28. Kf2 {[%emt 0:02:38]} Bc5 {[%emt 0:01:39]} 29. Rxb7 {[%emt 0:06:11]} Bxd4 {[%emt 0:00:11]} 30. exd4 {[%emt 0:00:59]} Rc4 {[%emt 0:04:23]} 31. f5 {[%emt 0:01:47]} Nf8 {[%emt 0:01:00]} 32. a5 {[%emt 0:02:48]} Rxd4 {[%emt 0:00:11]} 33. g4 {[%emt 0:00:00]} Ra4 {[%emt 0:00:41]} 34. Rb6 {[%emt 0:00:09]} Rxa5 {[%emt 0:00:56]} 35. Rxf6 {[%emt 0:00:05]} Nd7 {[%emt 0:00:55]} 36. Rd6 {[%emt 0:00:12]} Ne5 {[%emt 0:01:53]} 37. f6 {[%emt 0:00:31]} h6 {[%emt 0:00:58]} 38. Kg3 {[%emt 0:00:30]} Kh7 {[%emt 0:00:27]} 39. h4 {[%emt 0:01:39]} Ra3+ {[%emt 0:00:13]} 40. Kf4 {[%emt 0:00:10]} Ng6+ {[%emt 0:00:00]} 41. Kf5 {[%emt 0:05:30]} Nxh4+ {[%emt 0:00:25]} 42. Kf4 {[%emt 0:01:30]} Ng6+ {[%emt 0:01:30]} 43. Ke4 {[%emt 0:03:30]} Ra4+ {[%emt 0:02:30]} 44. Rd4 {[%emt 0:02:30]} Rxd4+ {[%emt 0:00:30]} 45. Kxd4 {[%emt 0:00:00]} Nf8 {[%emt 0:00:30]} 46. Ke5 {[%emt 0:01:00]} Kg6 {[%emt 0:00:00]} 47. Kf4 {[%emt 0:01:30]} Kxf6 {[%emt 0:00:00]} 48. Kg3 {[%emt 0:00:30]} Kg5 {[%emt 0:00:30]} 49. Kf3 {[%emt 0:00:00]} Ng6 {[%emt 0:00:30]} 50. Kg3 {[%emt 0:00:00]} 0-1